[Event "DVM U16 2019"]
[Site "Magedburg"]
[Date "2019.12.27"]
[Round "2"]
[White "Rietschel, Tilo"]
[Black "Biermann, Florian"]
[Result "1-0"]
[ECO "B90"]
[WhiteElo "2005"]
[BlackElo "2044"]
[Annotator "NA"]
[PlyCount "132"]
[EventDate "2019.12.27"]
[EventType "team-tourn"]
[EventRounds "7"]
[EventCountry "GER"]
[SourceTitle "playchess.com"]
[Source "ChessBase"]
[SourceQuality "1"]
[WhiteTeam "Lübecker SV"]
[BlackTeam "SG Bochum"]
[WhiteTeamCountry "GER"]
[TimeControl "40/5400+30:1800+30"]

1. e4 {[%emt 0:00:00]} c5 {[%emt 0:00:00]} 2. Nf3 {[%emt 0:00:00]} d6 {[%emt 0:00:00]} 3. d4 {[%emt 0:00:00]} cxd4 {[%emt 0:00:00]} 4. Nxd4 {[%emt 0:00:00]} Nf6 {[%emt 0:00:05]} 5. Nc3 {[%emt 0:00:00]} a6 {[%emt 0:00:16]} 6. Bc4 {[%emt 0:00:17]} e6 {[%emt 0:00:30]} 7. Bb3 {[%emt 0:00:08]} Nbd7 {[%emt 0:00:14]} 8. f4 {[%emt 0:00:43]} Nc5 {[%emt 0:00:23]} 9. f5 {[%emt 0:02:12]} Be7 {[%emt 0:05:16]} 10. Qf3 {[%emt 0:01:58]} Bd7 {[%emt 0:08:29]} 11. Be3 {[%emt 0:12:24]} Rc8 {[%emt 0:17:55]} 12. g4 {[%emt 0:14:48]} e5 {[%emt 0:10:54]} 13. Nde2 {[%emt 0:00:14]} Nxb3 {[%emt 0:10:02]} 14. axb3 {[%emt 0:00:12]} h5 {[%emt 0:00:48]} 15. g5 {[%emt 0:13:46]} Ng4 {[%emt 0:00:50]} 16. h4 {[%emt 0:00:43]} Bc6 {[%emt 0:03:28]} 17. Rd1 {[%emt 0:04:09]} Qa5 {[%emt 0:01:48]} 18. Bd2 {[%emt 0:07:25]} Qc5 {[%emt 0:06:14]} 19. Ng3 {[%emt 0:02:52]} g6 {[%emt 0:01:24]} 20. Nf1 {[%emt 0:02:21]} Bd8 {[%emt 0:01:22]} 21. Ne3 {[%emt 0:04:25]} Bb6 {[%emt 0:07:49]} 22. Nc4 {[%emt 0:06:12]} Ba7 {[%emt 0:03:11]} 23. fxg6 {[%emt 0:03:43]} O-O {[%emt 0:01:21]} 24. g7 {[%emt 0:05:24]} Kxg7 {[%emt 0:00:22]} 25. Ke2 {[%emt 0:15:11]} f5 {[%emt 0:08:29]} 26. gxf6+ {[%emt 0:00:25]} Rxf6 {[%emt 0:02:27]} 27. Be3 {[%emt 0:00:15]} Nxe3 {[%emt 0:02:55]} 28. Qxe3 {[%emt 0:00:31]} Rf2+ {[%emt 0:01:17]} 29. Kd3 {[%emt 0:00:06]} Qxe3+ {[%emt 0:03:11]} 30. Nxe3 {[%emt 0:00:05]} Bxe3 {[%emt 0:02:03]} 31. Kxe3 {[%emt 0:01:08]} Rcf8 {[%emt 0:00:09]} 32. Rhg1+ {[%emt 0:00:20]} Kh7 {[%emt 0:00:11]} 33. Rg3 {[%emt 0:01:07]} Rxc2 {[%emt 0:01:53]} 34. Rxd6 {[%emt 0:02:18]} Rg8 {[%emt 0:00:16]} 35. Rxg8 {[%emt 0:01:06]} Kxg8 {[%emt 0:00:05]} 36. Rd2 {[%emt 0:00:06]} Rxd2 {[%emt 0:01:04]} 37. Kxd2 {[%emt 0:00:05]} a5 {[%emt 0:00:18]} 38. Kd3 {[%emt 0:00:52]} b5 {[%emt 0:00:57]} 39. Nd5 {[%emt 0:01:25]} Kf7 {[%emt 0:00:54]} 40. b4 {[%emt 0:00:26]} axb4 {[%emt 0:00:21]} 41. Nxb4 {[%emt 0:01:06]} Bd7 {[%emt 0:02:49]} 42. Nd5 {[%emt 0:19:40]} Ke6 {[%emt 0:00:48]} 43. Ne3 {[%emt 0:01:58]} Be8 {[%emt 0:01:31]} 44. Kc3 {[%emt 0:05:19]} Bc6 {[%emt 0:01:11]} 45. Kb4 {[%emt 0:01:24]} Bxe4 {[%emt 0:01:21]} 46. Kxb5 {[%emt 0:00:05]} Bd3+ {[%emt 0:01:22]} 47. Kc5 {[%emt 0:00:12]} e4 {[%emt 0:06:43]} 48. Kd4 {[%emt 0:00:19]} Bb1 {[%emt 0:04:41]} 49. b3 {[%emt 0:01:22]} Kf6 {[%emt 0:03:40]} 50. b4 {[%emt 0:01:01]} Bd3 {[%emt 0:01:11]} 51. Kd5 {[%emt 0:00:10]} Kf7 {[%emt 0:01:23]} 52. Ke5 {[%emt 0:01:42]} Ke7 {[%emt 0:03:13]} 53. Nd5+ {[%emt 0:00:36]} Kd7 {[%emt 0:04:27]} 54. Nf6+ {[%emt 0:01:04]} Kc6 {[%emt 0:00:45]} 55. Nxe4 {[%emt 0:00:26]} Kb5 {[%emt 0:00:47]} 56. Ng3 {[%emt 0:00:03]} Bg6 {[%emt 0:00:21]} 57. Kf6 {[%emt 0:00:04]} Be8 {[%emt 0:00:07]} 58. Kg5 {[%emt 0:01:06]} Kxb4 {[%emt 0:00:14]} 59. Nxh5 {[%emt 0:00:04]} Kc5 {[%emt 0:00:10]} 60. Ng7 {[%emt 0:00:06]} Bf7 {[%emt 0:01:42]} 61. Kf6 {[%emt 0:00:12]} Bg8 {[%emt 0:00:42]} 62. h5 {[%emt 0:00:18]} Bh7 {[%emt 0:00:47]} 63. h6 {[%emt 0:00:18]} Kd5 {[%emt 0:01:30]} 64. Nh5 {[%emt 0:01:08]} Ke4 {[%emt 0:00:52]} 65. Kg7 {[%emt 0:00:13]} Bf5 {[%emt 0:00:04]} 66. Ng3+ {[%emt 0:00:04]} Kd5 {normal} 1-0

[Event "DVM U16 2019"]
[Site "Magedburg"]
[Date "2019.12.27"]
[Round "2"]
[White "Hundrieser, Malte"]
[Black "Borodaev, Roman"]
[Result "1-0"]
[ECO "B35"]
[WhiteElo "2003"]
[BlackElo "1705"]
[Annotator "NA"]
[PlyCount "91"]
[EventDate "2019.12.27"]
[EventType "team-tourn"]
[EventRounds "7"]
[EventCountry "GER"]
[SourceTitle "playchess.com"]
[Source "ChessBase"]
[SourceQuality "1"]
[WhiteTeam "Reideburger SV 90 Halle"]
[BlackTeam "Karlsruher SF"]
[WhiteTeamCountry "GER"]
[BlackTeamCountry "GER"]
[TimeControl "40/5400+30:1800+30"]

1. e4 c5 2. Nf3 g6 3. d4 cxd4 4. Nxd4 Bg7 5. Nc3 Nc6 6. Be3 Nf6 7. Bc4 O-O 8. Bb3 Ng4 9. Qxg4 Nxd4 10. Qd1 Nc6 11. Qd2 d6 12. O-O-O Be6 13. Bh6 Bxb3 14. cxb3 Rc8 15. Kb1 Qa5 16. h4 Qh5 17. Bxg7 Kxg7 18. f3 f5 19. exf5 Qxf5+ 20. Ka1 h5 21. Rhg1 Rcd8 22. Nd5 e6 23. Ne3 Qf4 24. g4 Qxf3 25. Rdf1 Qe4 26. gxh5 Rxf1+ 27. Nxf1 Rf8 28. a3 Rf6 29. Ka2 Qxh4 30. Qxd6 Qxh5 31. Qd7+ Rf7 32. Qxe6 Qf5 33. Qe3 Qf2 34. Qg5 Qf5 35. Qg3 Nd4 36. Qc3 Qf6 37. Rh1 Nc6 38. Qh3 Kf8 39. Qc8+ Nd8 40. Ne3 Kg7 41. Qh3 Kg8 42. Ng4 Qg7 43. Nh6+ Kf8 44. Nxf7 Nxf7 45. Qc8+ Ke7 46. Re1+ {normal} 1-0

[Event "DVM U16 2019"]
[Site "Magedburg"]
[Date "2019.12.27"]
[Round "2"]
[White "Koll, Linus"]
[Black "Post, Hugo"]
[Result "1/2-1/2"]
[ECO "B54"]
[WhiteElo "1987"]
[BlackElo "2181"]
[Annotator "NA"]
[PlyCount "62"]
[EventDate "2019.12.27"]
[EventType "team-tourn"]
[EventRounds "7"]
[EventCountry "GER"]
[SourceTitle "playchess.com"]
[Source "ChessBase"]
[SourceQuality "1"]
[WhiteTeam "Karlsruher SF"]
[BlackTeam "Reideburger SV 90 Halle"]
[WhiteTeamCountry "GER"]
[TimeControl "40/5400+30:1800+30"]

1. e4 {[%emt 0:00:00]} c5 {[%emt 0:00:00]} 2. Nf3 {[%emt 0:00:00]} d6 {[%emt 0:00:00]} 3. d4 {[%emt 0:00:00]} cxd4 {[%emt 0:00:00]} 4. Nxd4 {[%emt 0:00:00]} Nf6 {[%emt 0:00:01]} 5. f3 {[%emt 0:01:19]} e5 {[%emt 0:00:20]} 6. Nb3 {[%emt 0:00:51]} Be7 {[%emt 0:02:46]} 7. Be3 {[%emt 0:03:12]} O-O {[%emt 0:01:18]} 8. c4 {[%emt 0:01:34]} a5 {[%emt 0:08:07]} 9. Nc3 {[%emt 0:02:17]} a4 {[%emt 0:01:38]} 10. Nd2 {[%emt 0:05:55]} Qa5 {[%emt 0:01:39]} 11. Nd5 {[%emt 0:10:53]} Nxd5 {[%emt 0:00:40]} 12. exd5 {[%emt 0:00:04]} f5 {[%emt 0:02:17]} 13. Bd3 {[%emt 0:06:39]} Nd7 {[%emt 0:12:03]} 14. O-O {[%emt 0:05:49]} Nc5 {[%emt 0:07:45]} 15. Qc2 {[%emt 0:04:44]} Bd7 {[%emt 0:01:38]} 16. Rab1 {[%emt 0:21:47]} Nxd3 {[%emt 0:06:54]} 17. Qxd3 {[%emt 0:00:06]} Qd8 {[%emt 0:00:11]} 18. c5 {[%emt 0:11:41]} Qe8 {[%emt 0:05:02]} 19. cxd6 {[%emt 0:02:34]} Bxd6 {[%emt 0:00:05]} 20. Nc4 {[%emt 0:01:27]} Rf6 {[%emt 0:01:43]} 21. Rfe1 {[%emt 0:15:21]} Qh5 {[%emt 0:02:15]} 22. Nxd6 {[%emt 0:02:50]} Rxd6 {[%emt 0:00:06]} 23. Bf2 {[%emt 0:01:05]} Re8 {[%emt 0:01:40]} 24. b3 {[%emt 0:00:48]} f4 {[%emt 0:04:56]} 25. Qd2 {[%emt 0:00:55]} Rg6 {[%emt 0:01:35]} 26. bxa4 {[%emt 0:00:15]} Bh3 {[%emt 0:03:51]} 27. g4 {[%emt 0:00:49]} Bxg4 {[%emt 0:07:41]} 28. fxg4 {[%emt 0:00:25]} Qxg4+ {[%emt 0:00:05]} 29. Kf1 {[%emt 0:00:30]} Qg2+ {[%emt 0:00:30]} 30. Ke2 {[%emt 0:00:05]} Qe4+ {[%emt 0:19:07]} 31. Kf1 {[%emt 0:00:04]} Qg2+ {[%emt 0:01:36] normal} 1/2-1/2

[Event "DVM U16 2019"]
[Site "Magedburg"]
[Date "2019.12.27"]
[Round "2"]
[White "Bornholdt, Joa Max"]
[Black "Prieb, Robert"]
[Result "1/2-1/2"]
[ECO "D93"]
[WhiteElo "1890"]
[BlackElo "1963"]
[Annotator "NA"]
[PlyCount "63"]
[EventDate "2019.12.27"]
[EventType "team-tourn"]
[EventRounds "7"]
[EventCountry "GER"]
[SourceTitle "playchess.com"]
[Source "ChessBase"]
[SourceQuality "1"]
[WhiteTeam "Lübecker SV"]
[BlackTeam "SG Bochum"]
[WhiteTeamCountry "GER"]
[BlackTeamCountry "GER"]
[TimeControl "40/5400+30:1800+30"]

1. d4 {[%emt 0:00:00]} Nf6 {[%emt 0:00:00]} 2. c4 {[%emt 0:00:00]} g6 {[%emt 0:00:00]} 3. Nf3 {[%emt 0:00:00]} Bg7 {[%emt 0:00:12]} 4. Nc3 {[%emt 0:00:01]} d5 {[%emt 0:00:13]} 5. Bf4 {[%emt 0:01:57]} O-O {[%emt 0:01:09]} 6. e3 {[%emt 0:00:39]} c5 {[%emt 0:00:55]} 7. Be2 {[%emt 0:04:47]} dxc4 {[%emt 0:08:36]} 8. O-O {[%emt 0:01:45]} Nh5 {[%emt 0:02:53]} 9. Be5 {[%emt 0:02:38]} Nd7 {[%emt 0:11:18]} 10. Bxg7 {[%emt 0:02:40]} Nxg7 {[%emt 0:01:16]} 11. Bxc4 {[%emt 0:01:11]} Nb6 {[%emt 0:06:30]} 12. Bb3 {[%emt 0:02:10]} cxd4 {[%emt 0:03:31]} 13. Qxd4 {[%emt 0:05:50]} Qxd4 {[%emt 0:04:07]} 14. Nxd4 {[%emt 0:00:29]} Bd7 {[%emt 0:02:00]} 15. Rfd1 {[%emt 0:03:20]} Rfd8 {[%emt 0:02:45]} 16. Rac1 {[%emt 0:05:27]} Rac8 {[%emt 0:05:37]} 17. Ne4 {[%emt 0:05:54]} Rxc1 {[%emt 0:02:10]} 18. Rxc1 {[%emt 0:00:44]} Rc8 {[%emt 0:01:04]} 19. Rxc8+ {[%emt 0:00:54]} Bxc8 {[%emt 0:01:02]} 20. Ng5 {[%emt 0:01:27]} e6 {[%emt 0:02:19]} 21. Nb5 {[%emt 0:03:11]} h6 {[%emt 0:02:47]} 22. Nf3 {[%emt 0:05:34]} a6 {[%emt 0:01:08]} 23. Nd6 {[%emt 0:00:11]} Nf5 {[%emt 0:01:39]} 24. Nxc8 {[%emt 0:03:14]} Nxc8 {[%emt 0:02:28]} 25. Ne5 {[%emt 0:00:38]} Kf8 {[%emt 0:04:16]} 26. Kf1 {[%emt 0:04:02]} Ke7 {[%emt 0:03:13]} 27. Ke2 {[%emt 0:02:13]} g5 {[%emt 0:04:15]} 28. Kd3 {[%emt 0:05:09]} f6 {[%emt 0:02:37]} 29. Nc4 {[%emt 0:05:57]} Nfd6 {[%emt 0:03:19]} 30. Nd2 {[%emt 0:06:02]} Nb6 {[%emt 0:01:44]} 31. Nf3 {[%emt 0:04:09]} Nd7 {[%emt 0:01:53]} 32. Nd2 {[%emt 0:05:58] normal} 1/2-1/2

[Event "DVM U16 2019"]
[Site "Magedburg"]
[Date "2019.12.27"]
[Round "2"]
[White "Grabbel, Lennart Christian"]
[Black "Hoerkner, Nico"]
[Result "1-0"]
[ECO "A05"]
[WhiteElo "1849"]
[BlackElo "1699"]
[Annotator "NA"]
[PlyCount "115"]
[EventDate "2019.12.27"]
[EventType "team-tourn"]
[EventRounds "7"]
[EventCountry "GER"]
[SourceTitle "playchess.com"]
[Source "ChessBase"]
[SourceQuality "1"]
[WhiteTeam "Hamburger SK"]
[BlackTeam "SK König Plauen"]
[BlackTeamCountry "GER"]
[TimeControl "40/5400+30:1800+30"]

1. Nf3 {[%emt 0:00:00]} Nf6 {[%emt 0:00:00]} 2. c4 {[%emt 0:00:00]} b6 {[%emt 0:00:50]} 3. g3 {[%emt 0:00:00]} Bb7 {[%emt 0:00:24]} 4. Bg2 {[%emt 0:00:00]} e6 {[%emt 0:00:19]} 5. Nc3 {[%emt 0:00:37]} Be7 {[%emt 0:00:46]} 6. O-O {[%emt 0:00:54]} c5 {[%emt 0:05:30]} 7. b3 {[%emt 0:04:27]} O-O {[%emt 0:03:16]} 8. Bb2 {[%emt 0:00:15]} d6 {[%emt 0:00:29]} 9. Qc2 {[%emt 0:03:16]} Nbd7 {[%emt 0:03:49]} 10. Rad1 {[%emt 0:05:00]} Rc8 {[%emt 0:08:09]} 11. Rfe1 {[%emt 0:01:34]} Qc7 {[%emt 0:01:43]} 12. e4 {[%emt 0:09:24]} Ne5 {[%emt 0:08:04]} 13. d4 {[%emt 0:02:43]} Nxf3+ {[%emt 0:02:12]} 14. Bxf3 {[%emt 0:00:07]} cxd4 {[%emt 0:03:40]} 15. Rxd4 {[%emt 0:00:06]} Rfd8 {[%emt 0:00:27]} 16. Qd2 {[%emt 0:01:33]} a6 {[%emt 0:03:36]} 17. Rd1 {[%emt 0:03:24]} Nd7 {[%emt 0:05:03]} 18. Bg2 {[%emt 0:03:23]} Nc5 {[%emt 0:05:10]} 19. Qe3 {[%emt 0:01:23]} Re8 {[%emt 0:13:17]} 20. R4d2 {[%emt 0:02:44]} Rcd8 {[%emt 0:01:15]} 21. Ne2 {[%emt 0:15:05]} Nd7 {[%emt 0:13:36]} 22. Qd4 {[%emt 0:06:40]} Nf6 {[%emt 0:03:43]} 23. Nc3 {[%emt 0:02:13]} Bc6 {[%emt 0:01:59]} 24. Ba3 {[%emt 0:04:26]} Qb7 {[%emt 0:02:39]} 25. Qe3 {[%emt 0:06:16]} Qc7 {[%emt 0:01:06]} 26. Rd4 {[%emt 0:04:49]} Rd7 {[%emt 0:02:06]} 27. Qd2 {[%emt 0:02:18]} Red8 {[%emt 0:00:35]} 28. Qe2 {[%emt 0:08:13]} Qb7 {[%emt 0:01:44]} 29. Nd5 {[%emt 0:04:10]} Bxd5 {[%emt 0:01:36]} 30. exd5 {[%emt 0:00:13]} e5 {[%emt 0:01:33]} 31. R4d2 {[%emt 0:00:26]} b5 {[%emt 0:00:54]} 32. c5 {[%emt 0:02:23]} Qb8 {[%emt 0:01:52]} 33. c6 {[%emt 0:00:07]} Ra7 {[%emt 0:00:21]} 34. Rc2 {[%emt 0:01:47]} Rc8 {[%emt 0:00:52]} 35. Bf1 {[%emt 0:01:08]} h6 {[%emt 0:01:29]} 36. Bc1 {[%emt 0:00:47]} Bf8 {[%emt 0:00:40]} 37. Be3 {[%emt 0:00:10]} Ra8 {[%emt 0:01:24]} 38. f3 {[%emt 0:03:56]} Qc7 {[%emt 0:00:17]} 39. Qf2 {[%emt 0:01:26]} Rcb8 {[%emt 0:00:18]} 40. Bh3 {[%emt 0:01:27]} Be7 {[%emt 0:01:06]} 41. Qd2 {[%emt 0:04:11]} Bf8 {[%emt 0:00:20]} 42. Kh1 {[%emt 0:02:45]} Re8 {[%emt 0:01:39]} 43. Bg2 {[%emt 0:00:13]} Reb8 {[%emt 0:00:25]} 44. Rcc1 {[%emt 0:00:49]} Kh8 {[%emt 0:00:55]} 45. f4 {[%emt 0:02:01]} Rd8 {[%emt 0:00:21]} 46. fxe5 {[%emt 0:01:09]} dxe5 {[%emt 0:00:08]} 47. Bc5 {[%emt 0:00:28]} Bxc5 {[%emt 0:01:43]} 48. Rxc5 {[%emt 0:00:05]} Qd6 {[%emt 0:02:04]} 49. Qc2 {[%emt 0:00:36]} Rac8 {[%emt 0:01:15]} 50. Rc3 {[%emt 0:04:31]} Kg8 {[%emt 0:01:31]} 51. c7 {[%emt 0:01:47]} Rd7 {[%emt 0:01:35]} 52. Bh3 {[%emt 0:00:05]} Rcxc7 {[%emt 0:01:41]} 53. Bxd7 {[%emt 0:00:10]} Rxd7 {[%emt 0:00:07]} 54. Rc8+ {[%emt 0:00:47]} Rd8 {[%emt 0:00:08]} 55. Qc6 {[%emt 0:01:15]} Qxc6 {[%emt 0:00:12]} 56. Rxd8+ {[%emt 0:00:05]} Qe8 {[%emt 0:00:16]} 57. Rxe8+ {[%emt 0:00:05]} Nxe8 {[%emt 0:00:04]} 58. d6 {[%emt 0:00:08] normal} 1-0

[Event "DVM U16 2019"]
[Site "Magedburg"]
[Date "2019.12.27"]
[Round "2"]
[White "Wang, Ruiming"]
[Black "Grunwald, Jonathan"]
[Result "0-1"]
[ECO "C55"]
[WhiteElo "1808"]
[BlackElo "1815"]
[Annotator "NA"]
[PlyCount "70"]
[EventDate "2019.12.27"]
[EventType "team-tourn"]
[EventRounds "7"]
[EventCountry "GER"]
[SourceTitle "playchess.com"]
[Source "ChessBase"]
[SourceQuality "1"]
[WhiteTeam "SG Leipzig"]
[BlackTeam "Biebertaler SF"]
[WhiteTeamCountry "GER"]
[BlackTeamCountry "GER"]
[TimeControl "40/5400+30:1800+30"]

1. e4 e5 2. Nf3 Nc6 3. d4 exd4 4. Bc4 Nf6 5. e5 d5 6. Bb5 Ne4 7. Nxd4 Bd7 8. Bxc6 bxc6 9. O-O Bc5 10. Be3 O-O 11. f3 Ng5 12. f4 Ne6 13. c3 Bb6 14. f5 Nc5 15. Nd2 Nd3 16. N2f3 Nxb2 17. Qe2 Nc4 18. Bg5 Qc8 19. f6 Re8 20. fxg7 Bg4 21. Bf6 c5 22. Nb3 Qe6 23. Qf2 Nd6 24. Ng5 Ne4 25. Qh4 Nxg5 26. Qxg5 a5 27. Rf4 a4 28. Rxg4 axb3 29. Rh4 c4+ 30. Kh1 Rxa2 31. Rb1 Be3 32. Qxe3 Qxf6 33. Rh5 Qg6 34. Rg1 Qxh5 35. Qc5 Qxe5 {normal} 0-1

[Event "DVM U16 2019"]
[Site "Magedburg"]
[Date "2019.12.27"]
[Round "2"]
[White "Pivtorak, Illia"]
[Black "Kotyk, Michael"]
[Result "0-1"]
[ECO "A80"]
[WhiteElo "1491"]
[BlackElo "2103"]
[Annotator "NA"]
[PlyCount "80"]
[EventDate "2019.12.27"]
[EventType "team-tourn"]
[EventRounds "7"]
[EventCountry "GER"]
[SourceTitle "playchess.com"]
[Source "ChessBase"]
[SourceQuality "1"]
[WhiteTeam "SK König Plauen"]
[BlackTeam "Hamburger SK"]
[TimeControl "40/5400+30:1800+30"]

1. d4 {[%emt 0:00:00]} f5 {[%emt 0:00:00]} 2. Bf4 {[%emt 0:01:12]} Nf6 {[%emt 0:00:00]} 3. e3 {[%emt 0:00:33]} d6 {[%emt 0:00:30]} 4. Nf3 {[%emt 0:00:19]} e6 {[%emt 0:00:06]} 5. c3 {[%emt 0:01:00]} Be7 {[%emt 0:00:13]} 6. Nbd2 {[%emt 0:13:37]} O-O {[%emt 0:00:26]} 7. Bc4 {[%emt 0:01:03]} d5 {[%emt 0:01:55]} 8. Bd3 {[%emt 0:00:54]} Nc6 {[%emt 0:10:33]} 9. h3 {[%emt 0:03:07]} Bd7 {[%emt 0:02:57]} 10. g4 {[%emt 0:10:32]} Ne4 {[%emt 0:01:10]} 11. Qc2 {[%emt 0:03:53]} Be8 {[%emt 0:03:43]} 12. h4 {[%emt 0:08:21]} fxg4 {[%emt 0:05:40]} 13. Ng5 {[%emt 0:08:53]} Nxg5 {[%emt 0:01:10]} 14. hxg5 {[%emt 0:06:05]} g6 {[%emt 0:00:18]} 15. Qd1 {[%emt 0:12:12]} Bxg5 {[%emt 0:03:33]} 16. Qxg4 {[%emt 0:00:24]} Bxf4 {[%emt 0:00:33]} 17. Qxe6+ {[%emt 0:00:44]} Rf7 {[%emt 0:05:24]} 18. O-O-O {[%emt 0:13:00]} Qd7 {[%emt 0:09:43]} 19. Qxd7 {[%emt 0:01:29]} Bxd7 {[%emt 0:01:41]} 20. exf4 {[%emt 0:00:39]} Rxf4 {[%emt 0:00:07]} 21. Rdf1 {[%emt 0:01:09]} Kg7 {[%emt 0:01:52]} 22. Nb3 {[%emt 0:03:49]} b6 {[%emt 0:00:55]} 23. Kd2 {[%emt 0:02:20]} Raf8 {[%emt 0:00:32]} 24. Rh2 {[%emt 0:01:37]} h5 {[%emt 0:00:39]} 25. Nc1 {[%emt 0:00:38]} Rf3 {[%emt 0:04:13]} 26. Bb5 {[%emt 0:01:31]} Nb8 {[%emt 0:02:58]} 27. Be2 {[%emt 0:01:01]} Rh3 {[%emt 0:00:25]} 28. Rg2 {[%emt 0:00:57]} Rh4 {[%emt 0:01:45]} 29. Nd3 {[%emt 0:02:03]} Bh3 {[%emt 0:03:49]} 30. Rh2 {[%emt 0:01:14]} Bxf1 {[%emt 0:00:02]} 31. Rxh4 {[%emt 0:00:10]} Bxe2 {[%emt 0:00:11]} 32. Kxe2 {[%emt 0:00:13]} Nd7 {[%emt 0:00:12]} 33. Nf4 {[%emt 0:01:15]} Re8+ {[%emt 0:00:09]} 34. Kd2 {[%emt 0:00:29]} Nf6 {[%emt 0:01:28]} 35. f3 {[%emt 0:00:33]} g5 {[%emt 0:01:24]} 36. Nxh5+ {[%emt 0:00:31]} Kg6 {[%emt 0:00:06]} 37. Nxf6 {[%emt 0:00:30]} gxh4 {[%emt 0:00:01]} 38. Nxd5 {[%emt 0:00:29]} Kf5 {[%emt 0:00:28]} 39. Ne3+ {[%emt 0:00:25]} Kf4 {[%emt 0:00:07]} 40. Nd5+ {[%emt 0:00:38]} Kxf3 {[%emt 0:00:25] normal} 0-1

[Event "DVM U16 2019"]
[Site "Magedburg"]
[Date "2019.12.27"]
[Round "2"]
[White "Elstner, Florian"]
[Black "Goltser, Ilja"]
[Result "1/2-1/2"]
[ECO "D53"]
[WhiteElo "1487"]
[BlackElo "1703"]
[Annotator "NA"]
[PlyCount "48"]
[EventDate "2019.12.27"]
[EventType "team-tourn"]
[EventRounds "7"]
[EventCountry "GER"]
[SourceTitle "playchess.com"]
[Source "ChessBase"]
[SourceQuality "1"]
[WhiteTeam "SK König Plauen"]
[BlackTeam "Hamburger SK"]
[WhiteTeamCountry "GER"]
[BlackTeamCountry "UKR"]
[TimeControl "40/5400+30:1800+30"]

1. d4 {[%emt 0:00:00]} e6 {[%emt 0:00:35]} 2. c4 {[%emt 0:00:25]} Nf6 {[%emt 0:01:29]} 3. Nc3 {[%emt 0:00:11]} d5 {[%emt 0:01:52]} 4. Bg5 {[%emt 0:01:56]} Be7 {[%emt 0:01:21]} 5. e3 {[%emt 0:00:23]} c6 {[%emt 0:03:48]} 6. cxd5 {[%emt 0:00:49]} exd5 {[%emt 0:01:19]} 7. Bd3 {[%emt 0:00:30]} Nbd7 {[%emt 0:03:47]} 8. Nge2 {[%emt 0:00:21]} O-O {[%emt 0:02:57]} 9. Qc2 {[%emt 0:00:59]} Re8 {[%emt 0:05:07]} 10. O-O-O {[%emt 0:03:35]} a5 {[%emt 0:11:08]} 11. f3 {[%emt 0:01:58]} h6 {[%emt 0:07:36]} 12. Bf4 {[%emt 0:02:27]} Nf8 {[%emt 0:12:03]} 13. g4 {[%emt 0:03:49]} N6h7 {[%emt 0:05:39]} 14. Bg3 {[%emt 0:10:16]} Bh4 {[%emt 0:06:05]} 15. Qd2 {[%emt 0:07:12]} Qe7 {[%emt 0:04:30]} 16. Bxh4 {[%emt 0:03:29]} Qxh4 {[%emt 0:00:13]} 17. Ng3 {[%emt 0:03:33]} g6 {[%emt 0:06:22]} 18. Rde1 {[%emt 0:20:53]} Ne6 {[%emt 0:03:46]} 19. Bc2 {[%emt 0:12:35]} Rd8 {[%emt 0:02:58]} 20. Nce2 {[%emt 0:03:34]} Nc7 {[%emt 0:03:10]} 21. Nf4 {[%emt 0:02:53]} Ne6 {[%emt 0:03:44]} 22. Ng2 {[%emt 0:05:55]} Qe7 {[%emt 0:00:07]} 23. h4 {[%emt 0:00:49]} Qb4 {[%emt 0:04:49]} 24. Qd1 {[%emt 0:03:23]} a4 {[%emt 0:01:19] normal} 1/2-1/2

[Event "DVM U16 2019"]
[Site "Magedburg"]
[Date "2019.12.27"]
[Round "2"]
[White "Peschel, Julia"]
[Black "Schaefer, Konstantin"]
[Result "0-1"]
[ECO "B22"]
[WhiteElo "1384"]
[BlackElo "1766"]
[Annotator "NA"]
[PlyCount "84"]
[EventDate "2019.12.27"]
[EventType "team-tourn"]
[EventRounds "7"]
[EventCountry "GER"]
[SourceTitle "playchess.com"]
[Source "ChessBase"]
[SourceQuality "1"]
[WhiteTeam "Biebertaler SF"]
[BlackTeam "SG Leipzig"]
[WhiteTeamCountry "GER"]
[BlackTeamCountry "GER"]
[TimeControl "40/5400+30:1800+30"]

1. e4 {[%emt 0:00:00]} c5 {[%emt 0:00:00]} 2. c3 {[%emt 0:00:00]} g6 {[%emt 0:01:20]} 3. Nf3 {[%emt 0:02:01]} Bg7 {[%emt 0:03:50]} 4. Bc4 {[%emt 0:15:12]} e6 {[%emt 0:04:20]} 5. d4 {[%emt 0:00:38]} cxd4 {[%emt 0:00:14]} 6. cxd4 {[%emt 0:05:11]} d5 {[%emt 0:01:04]} 7. exd5 {[%emt 0:00:19]} exd5 {[%emt 0:01:44]} 8. Bb3 {[%emt 0:00:51]} Ne7 {[%emt 0:00:40]} 9. O-O {[%emt 0:00:11]} O-O {[%emt 0:04:55]} 10. Nc3 {[%emt 0:07:00]} Nbc6 {[%emt 0:03:24]} 11. h3 {[%emt 0:04:26]} Be6 {[%emt 0:14:18]} 12. Bg5 {[%emt 0:08:46]} Re8 {[%emt 0:03:09]} 13. Re1 {[%emt 0:14:27]} h6 {[%emt 0:05:57]} 14. Bf4 {[%emt 0:01:41]} a6 {[%emt 0:01:47]} 15. Qd2 {[%emt 0:01:24]} Nf5 {[%emt 0:03:17]} 16. Bxd5 {[%emt 0:19:00]} g5 {[%emt 0:04:00]} 17. Bxc6 {[%emt 0:00:21]} bxc6 {[%emt 0:01:40]} 18. Be5 {[%emt 0:00:36]} Bxe5 {[%emt 0:01:34]} 19. dxe5 {[%emt 0:03:35]} Qb6 {[%emt 0:03:49]} 20. Ne4 {[%emt 0:03:38]} Red8 {[%emt 0:00:55]} 21. Qc2 {[%emt 0:03:27]} Ne7 {[%emt 0:03:21]} 22. Nf6+ {[%emt 0:00:23]} Kf8 {[%emt 0:03:56]} 23. Qh7 {[%emt 0:02:21]} Nf5 {[%emt 0:00:56]} 24. g4 {[%emt 0:01:31]} Nd4 {[%emt 0:03:12]} 25. Qh8+ {[%emt 0:00:15]} Ke7 {[%emt 0:04:57]} 26. Ng8+ {[%emt 0:00:57]} Rxg8 {[%emt 0:00:07]} 27. Qf6+ {[%emt 0:00:05]} Ke8 {[%emt 0:00:44]} 28. Nxd4 {[%emt 0:00:16]} Qxd4 {[%emt 0:07:13]} 29. Rad1 {[%emt 0:00:40]} Qf4 {[%emt 0:00:52]} 30. Qxh6 {[%emt 0:03:57]} Ke7 {[%emt 0:03:11]} 31. Rc1 {[%emt 0:00:52]} Rh8 {[%emt 0:00:16]} 32. Qg7 {[%emt 0:00:35]} Rxh3 {[%emt 0:00:40]} 33. Qf6+ {[%emt 0:00:03]} Qxf6 {[%emt 0:00:06]} 34. exf6+ {[%emt 0:00:03]} Kxf6 {[%emt 0:00:13]} 35. Rxc6 {[%emt 0:01:08]} Rah8 {[%emt 0:04:30]} 36. Kf1 {[%emt 0:00:20]} Rh1+ {[%emt 0:00:08]} 37. Ke2 {[%emt 0:00:04]} Rxe1+ {[%emt 0:00:04]} 38. Kxe1 {[%emt 0:00:13]} Rh1+ {[%emt 0:01:37]} 39. Kd2 {[%emt 0:00:57]} Rf1 {[%emt 0:00:55]} 40. Ke2 {[%emt 0:00:09]} Rb1 {[%emt 0:02:58]} 41. Rb6 {[%emt 0:30:17]} Ke7 {[%emt 0:31:54]} 42. Rxa6 {[%emt 0:00:07]} Bc4+ {[%emt 0:00:47] normal} 0-1